Cogmind - Beta 13 @@@ ROGUE MODE // 2024.07.21 @ 16:14:08 Player: Beef Result: Destroyed by G-50 Soldier with Heavy Laser Performance ------------- Evolutions (5) 2500 Regions Visited (9) 1800 Robots Destroyed (36) 180 Value Destroyed (1337) 1337 Prototype IDs (26) 520 Alien Tech Used (0) 0 Bonus (1763) 1763 TOTAL SCORE: 8100 Bonus ------- Met Warlord at Base 500 MAIN.C Attacked Warlord 500 Warlord Defense Kills 868 Friendly Fire -105 Cogmind --------- Core Integrity 0/1000 Matter 262/300 Energy 100/100 System Corruption 0% Temperature Cool (9) Movement Core (100) Ox1 Location -5/Warlord Parts ------- > --- POWER (1) -------- (None) > --- PROPULSION (4) --- (None) > --- UTILITY (10) ----- Enhanced Optical Array Improved Signal Interpreter Makeshift Terrain Scan Processor Advanced Targeting Computer Advanced Targeting Computer Improved Target Analyzer Improved Hacking Suite > --- WEAPON (2) ------- Falx > --- INVENTORY (5) ---- Neutrino Core Neutrino Core Backup Laser III Heavy Missile Launcher Peak State ------------ > --- POWER ------------ Micro Fission Core > --- PROPULSION ------- Carbon-fiber Leg Armored Leg Armored Leg Gyrokinetic Inverter > --- UTILITY ---------- Advanced Heat Sink Experimental Heat Sink Improved Signal Interpreter Makeshift Terrain Scan Processor Advanced Targeting Computer Advanced Targeting Computer Experimental Targeting Computer Improved Target Analyzer Advanced Kinecellerator Improved Hacking Suite > --- WEAPON ----------- Vortex Driver Helical Railgun > --- INVENTORY -------- Light Angular Momentum Engine Neutrino Core Tesla Rifle Heavy Missile Launcher Falx [Rating: 95] Favorites ----------- Power Micro Fission Core Engine Reinforced Ion Engine Power Core Micro Fission Core Reactor Light Antimatter Reactor Propulsion Armored Leg Treads Light Treads Leg Armored Leg Hover Unit Gyrokinetic Inverter Flight Unit Improved Flight Unit Utility Advanced Targeting Computer Device Advanced Heat Sink Storage Small Storage Unit Processor Advanced Targeting Computer Hackware Improved Hacking Suite Protection Hardened Medium Armor Plating Weapon KE Penetrator Energy Gun Tesla Rifle Energy Cannon Vortex Driver Ballistic Gun KE Penetrator Impact Weapon Hammer Slashing Weapon Katana Piercing Weapon Spear Build | -11 -10 -9 -8 -7 -6 -5 -5 -5 -5 ------- Run | Yrd Mat Mat Mat Fac Fac Fac Upp Upp War Slots Evolved 10 | . . 2 2 2 2 2 . . . Power . | . . . . . . . . . . Propulsion 2 | . . 1 1 . . . . . . Utility 8 | . . 1 1 2 2 2 . . . Weapon . | . . . . . . . . . . Parts Attached 96 | 7 8 7 2 7 14 6 7 19 19 Power 15 | 2 1 3 . 2 . . 2 3 2 Engine 10 | 2 1 3 . 2 . . 1 1 . Core 4 | . . . . . . . 1 1 2 Reactor 1 | . . . . . . . . 1 . Propulsion 29 | 2 5 2 . 1 4 4 . 7 4 Treads 2 | 2 . . . . . . . . . Leg 10 | . 2 . . . . 1 . 3 4 Wheel . | . . . . . . . . . . Hover 4 | . . . . . . 3 . 1 . Flight 13 | . 3 2 . 1 4 . . 3 . Utility 31 | 1 . 2 1 3 8 2 3 3 8 Device 9 | . . 1 . . 2 2 1 1 2 Storage 1 | 1 . . . . . . . . . Processor 13 | . . 1 1 2 3 . 1 1 4 Hackware 2 | . . . . . 2 . . . . Protection 6 | . . . . 1 1 . 1 1 2 Artifact . | . . . . . . . . . . Weapon 21 | 2 2 . 1 1 2 . 2 6 5 Energy Gun 5 | 1 . . . 1 . . 1 1 1 Energy Cannon 1 | . . . . . . . . . 1 Ballistic Gun 8 | 1 2 . . . . . 1 2 2 Ballistic Cannon . | . . . . . . . . . . Launcher . | . . . . . . . . . . Special Weapon . | . . . . . . . . . . Impact Weapon 1 | . . . 1 . . . . . . Slashing Weapon 3 | . . . . . 1 . . 1 1 Piercing Weapon 3 | . . . . . 1 . . 2 . Special Melee Weapon . | . . . . . . . . . . Unidentified Prototypes 9 | . 1 . . 1 2 . . . 5 Corrupted Parts 1 | . 1 . . . . . . . . System Corruption 2 | . 2 . . . . . . . . Parts Lost 31 | . . . 1 1 2 1 4 10 12 Power 4 | . . . 1 1 . . 1 1 . Propulsion 9 | . . . . . 1 . . 3 5 Utility 14 | . . . . . 1 1 2 5 5 Weapon 4 | . . . . . . . 1 1 2 Highest Loss Streak 10 | . . . 1 1 1 1 2 6 10 To Critical Strikes . | . . . . . . . . . . Average Slot Usage (%) 87 | . 77 69 75 87 91 99 98 84 88 Engine 2 | . 14 11 9 7 6 5 1 . . Core 3 | . . . . . . . 3 3 4 Treads 1 | . 14 . . . . . . . . Leg 10 | . 4 . . . . . . 13 17 Hover 4 | . . . . . . 4 17 5 4 Flight 6 | . 3 33 27 25 26 17 5 2 . Device 5 | . . 6 9 7 4 17 11 5 5 Storage 3 | . 14 11 9 7 6 5 5 . . Processor 28 | . . 7 16 17 29 28 28 29 36 Hackware 4 | . . . . . 6 5 5 5 5 Protection 1 | . . . . 6 2 . 4 . . Energy Gun 4 | . 12 . . 6 . . 3 3 4 Ballistic Gun 4 | . 13 . . . . . 3 3 4 Piercing Weapon 1 | . . . . . 4 5 1 2 . Naked Turns . | . . . . . . . . . . Heaviest Build 38 | 14 15 11 13 22 25 21 38 31 34 Greatest Support 81 | 40 40 15 15 20 32 32 42 47 81 Greatest Overweight (x) 4 | . 4 1 . 1 1 2 1 2 1 Average Overweight (x) . | . . . . . . . . . . Largest Inventory Capacity 8 | 8 8 8 8 8 8 8 8 8 5 Average Capacity 6 | 6 8 8 8 8 8 8 8 5 5 Most Carried 8 | 2 8 8 8 7 8 8 8 8 5 Average Carried 5 | 1 3 7 7 3 7 7 7 5 4 Final Capacity 8 | 8 8 8 8 8 8 8 8 5 5 Final Carried 8 | 2 8 8 8 3 8 8 7 5 4 Class Distribution -------------------- 73% | Mutant 16% | Scavenger-Mutant 7% | Sprinter Dominant Class ---------------- Mutant | -10/Materials Mutant | -9/Materials Mutant | -8/Materials Mutant | -7/Factory Sprinter | -6/Factory Mutant | -5/Factory Mutant | -5/Upper Caves Mutant | -5/Upper Caves Mutant | -5/Warlord Resources | -11 -10 -9 -8 -7 -6 -5 -5 -5 -5 ----------- Run | Yrd Mat Mat Mat Fac Fac Fac Upp Upp War Matter Collected 1251 | 205 139 . . . 160 111 192 250 194 Remotely . | . . . . . . . . . . Salvage Created 1786 | . 210 . . . 367 111 297 549 252 Parts 81 | . 17 . . . 16 4 15 26 3 Haulers Intercepted 2 | . . . . . 2 . . . . Recyclers Shooed 1 | . 1 . . . . . . . . Parts Field Recycled . | . . . . . . . . . . Retrieved Matter . | . . . . . . . . . . Parts Self-Destructed 19 | . . . . . . . 2 17 . Prevented 3 | . . . . . . . 2 1 . Kills | -11 -10 -9 -8 -7 -6 -5 -5 -5 -5 ------- Run | Yrd Mat Mat Mat Fac Fac Fac Upp Upp War Combat Hostiles Destroyed 32 | . 8 . . . 5 . 1 13 5 Melee 15 | . . . . . 5 . 1 9 . Guns 12 | . 7 . . . . . . 4 1 Cannons 4 | . . . . . . . . . 4 AOE 1 | . 1 . . . . . . . . Classes Destroyed 12 | . 3 . . . 2 1 1 1 4 Hauler 2 | . . . . . 2 . . . . Recycler 1 | . . . . . . 1 . . . Watcher 1 | . 1 . . . . . . . . Swarmer 19 | . 6 . . . 4 . . 9 . Grunt 6 | . 2 . . . . . . 3 1 Brawler 1 | . . . . . . . . . 1 Sentry 2 | . . . . . 1 . 1 . . Hunter 1 | . . . . . . . . . 1 Programmer 1 | . . . . . . . . 1 . Striker 1 | . . . . . . . . . 1 Executioner 1 | . . . . . . . . . 1 Packrat 1 | . . . . . . . 1 . . Samaritan 4 | . . . . . . . 3 1 . Best Kill Streak 6 | . 4 . . . 5 1 1 6 5 Combat Bots Only 6 | . 3 . . . 5 . 1 6 5 Max Kills in Single Turn 2 | . 2 . . . 1 1 1 1 1 Gunslinging 1 | . 1 . . . . . . . . Exploded 1 | . 1 . . . . . . . . Melee 1 | . . . . . 1 . 1 1 . Uniques/NPCs Destroyed . | . . . . . . . . . . Combat | -11 -10 -9 -8 -7 -6 -5 -5 -5 -5 -------- Run | Yrd Mat Mat Mat Fac Fac Fac Upp Upp War Hostile Shots Fired 459 | . 28 16 6 38 83 5 28 110 145 Missed 152 | . 8 8 1 22 26 3 4 31 49 Damage Taken 5682 | . 222 89 57 190 609 43 457 1453 2562 Core 1312 | . 39 22 40 58 152 . 90 388 523 Absorbed by Shields 17 | . . . . 17 . . . . . Redirected to Shielding 119 | . . . . 21 . . . . 98 Regen/Repaired (Parts) 143 | . . . . . . . . . 143 Core Remaining (%) 90 | 100 84 94 92 91 82 . . . . Volleys Fired 53 | . 17 . . . . . 5 11 20 Largest 2 | . 2 . . . . . 2 2 2 Hottest 133 | . 60 . . . . . 98 98 133 Shots Fired 106 | . 34 . . . . . 10 23 39 Gun 98 | . 34 . . . . . 10 23 31 Cannon 8 | . . . . . . . . . 8 Launcher . | . . . . . . . . . . Special . | . . . . . . . . . . Kinetic 54 | . 17 . . . . . 5 11 21 Thermal 9 | . . . . . . . . . 9 Explosive . | . . . . . . . . . . Electromagnetic 35 | . 17 . . . . . 5 12 1 Entropic 8 | . . . . . . . . . 8 Robot Hit Streak 11 | . 6 . . . . . 9 11 8 Robot Miss Streak 2 | . 2 . . . . . 1 1 2 Penetration Max 2 | . . . . . . . . . 2 Secondary Targets 1 | . 1 . . . . . . . . Max Gunslinging Chain 1 | . 1 . . . . . . . . Shots Hit Robots 125 | . 21 . . . 15 1 15 44 29 Core Hits 56 | . 11 . . . 8 1 7 19 10 Critical Kills 1 | . . . . . . . . . 1 Critical Parts Destroyed 2 | . . . . . . . . . 2 Critical Strikes 15 | . . . . . . 1 1 6 7 Destroy 4 | . . . . . . . . . 4 Corrupt 1 | . . . . . . . . 1 . Sever 2 | . . . . . . . . 2 . Impale 5 | . . . . . . 1 1 3 . Sunder 3 | . . . . . . . . . 3 Melee Attacks 89 | . . . 5 . 24 5 8 42 5 Impact 5 | . . . 5 . . . . . . Slashing 14 | . . . . . . . 1 8 5 Piercing 70 | . . . . . 24 5 7 34 . Sneak Attacks 7 | . . . . . 2 1 4 . . Combat Hostiles . | . . . . . . . . . . Follow-up Attacks 5 | . . . . . . . 1 4 . Damage Inflicted 3916 | . 334 . . . 543 65 517 1158 1299 Guns 1486 | . 285 . . . . . 144 396 661 Cannons 534 | . . . . . . . . . 534 Explosions 42 | . 42 . . . . . . . . Melee 1847 | . . . . . 543 65 373 762 104 Ramming 7 | . 7 . . . . . . . . Kinetic 976 | . 107 . . . . . 82 227 560 Thermal 143 | . 42 . . . . . . . 101 Explosive . | . . . . . . . . . . Electromagnetic 409 | . 178 . . . . . 62 169 . Impact . | . . . . . . . . . . Slashing 362 | . . . . . . . 34 224 104 Piercing 1485 | . . . . . 543 65 339 538 . Entropic 534 | . . . . . . . . . 534 Highest Corruption 5 | . 5 . . . 5 . . 2 2 Average Corruption 2 | . 3 . . . 2 . . 1 2 Corruption Purged . | . . . . . . . . . . Corruption Blocked . | . . . . . . . . . . Effects 16 | . . . . . 3 . . 13 . Message Errors 4 | . . . . . . . . 4 . Matter Fused 6 | . . . . . 1 . . 5 . Heat Flow Errors 1 | . . . . . . . . 1 . Energy Discharges 1 | . . . . . 1 . . . . Parts Rejected 1 | . . . . . 1 . . . . Parts Fused 1 | . . . . . . . . 1 . Data Loss (minor) 1 | . . . . . . . . 1 . Misfires 1 | . . . . . . . . 1 . Overload Shots . | . . . . . . . . . . Overflow Damage 250 | . . . . . 16 . 67 24 143 Projectiles 143 | . . . . . . . . . 143 Explosions . | . . . . . . . . . . Melee 107 | . . . . . 16 . 67 24 . Knockbacks . | . . . . . . . . . . Impact . | . . . . . . . . . . Kinetic . | . . . . . . . . . . Secondary . | . . . . . . . . . . Self-Inflicted Damage 37 | . 37 . . . . . . . . Shots 1 | . 1 . . . . . . . . Rammed 2 | . 2 . . . . . . . . Targets Rammed 2 | . 2 . . . . . . . . Kicked . | . . . . . . . . . . Crushed . | . . . . . . . . . . Highest Temperature 75 | . 33 . . . 1 . 12 54 75 Average Temperature 19 | . 17 . . . 1 . 6 23 26 Received Heat Transfer 1084 | . 33 45 9 90 66 9 81 322 429 Siege Activations . | . . . . . . . . . . Robots Corrupted . | . . . . . . . . . . Combat Hostiles . | . . . . . . . . . . Parts Fried 1 | . . . . . . . . 1 . Impact Corruptions . | . . . . . . . . . . Robots Melted . | . . . . . . . . . . Combat Hostiles . | . . . . . . . . . . Parts Melted . | . . . . . . . . . . Heat Transferred 222 | . . . . . . . . . 222 Parts Sabotaged . | . . . . . . . . . . Parts Stolen . | . . . . . . . . . . Parts Stripped . | . . . . . . . . . . Power Chain Reactions 1 | . 1 . . . . . . . . Alert | -11 -10 -9 -8 -7 -6 -5 -5 -5 -5 ------- Run | Yrd Mat Mat Mat Fac Fac Fac Upp Upp War Peak Influence 397 | . 248 156 178 181 397 236 . . . Initial 193 | . . 104 65 76 83 193 . . . Average 151 | . 112 131 117 107 221 213 . . . Maximum Alert Level 1 | . 1 . . . 1 1 . . . Low Security (%) 69 | 100 75 100 100 100 53 14 . . . Level 1 30 | . 24 . . . 46 85 . . . Level 2 . | . . . . . . . . . . Level 3 . | . . . . . . . . . . Level 4 . | . . . . . . . . . . Level 5 . | . . . . . . . . . . High Security . | . . . . . . . . . . Max Security . | . . . . . . . . . . Squads Dispatched 10 | . . 2 . 1 5 2 . . . Investigation 9 | . . 2 . 1 5 1 . . . Extermination . | . . . . . . . . . . Reinforcement 1 | . . . . . . 1 . . . Assault . | . . . . . . . . . . Garrison . | . . . . . . . . . . Intercept . | . . . . . . . . . . Searches Triggered . | . . . . . . . . . . Construction Impeded . | . . . . . . . . . . Haulers Reinforced . | . . . . . . . . . . Active Scanning Responses . | . . . . . . . . . . Cargo Convoy Interrupts . | . . . . . . . . . . Stealth | -11 -10 -9 -8 -7 -6 -5 -5 -5 -5 --------- Run | Yrd Mat Mat Mat Fac Fac Fac Upp Upp War Distress Signals . | . . . . . . . . . . Communications Jammed . | . . . . . . . . . . Distress Signals . | . . . . . . . . . . Times Spotted 123 | . 13 10 12 12 11 3 6 24 32 Peak Tracking Total 15 | . 5 12 9 9 5 3 5 7 15 Tactical Retreats 12 | . . . . 1 2 . 1 3 5 Traps | -11 -10 -9 -8 -7 -6 -5 -5 -5 -5 ------- Run | Yrd Mat Mat Mat Fac Fac Fac Upp Upp War Traps Triggered 6 | . 1 2 . 1 2 . . . . Indirectly . | . . . . . . . . . . Trap Hack Attempts . | . . . . . . . . . . Triggered . | . . . . . . . . . . Disarmed . | . . . . . . . . . . Reprogrammed . | . . . . . . . . . . Reused . | . . . . . . . . . . Traps Extracted . | . . . . . . . . . . Installed . | . . . . . . . . . . Triggered 19 | . . . . . . . 3 . 16 Machines | -11 -10 -9 -8 -7 -6 -5 -5 -5 -5 ---------- Run | Yrd Mat Mat Mat Fac Fac Fac Upp Upp War Machines Disabled 1 | . . . . . . . . . 1 Max in Single Turn 1 | . . . . . . . . . 1 Garrison Access 1 | . . . . . 1 . . . . Machines Repaired . | . . . . . . . . . . Machines Dismantled . | . . . . . . . . . . Machines Sabotaged . | . . . . . . . . . . Overloaded Fab Kills . | . . . . . . . . . . Hacking | -11 -10 -9 -8 -7 -6 -5 -5 -5 -5 --------- Run | Yrd Mat Mat Mat Fac Fac Fac Upp Upp War Machines Accessed 32 | . 4 4 3 2 11 1 . . 7 Terminals 19 | . 4 4 3 1 6 1 . . . Fabricators 4 | . . . . 1 3 . . . . Repair Stations 1 | . . . . . 1 . . . . Recycling Units . | . . . . . . . . . . Scanalyzers . | . . . . . . . . . . Garrison Access 1 | . . . . . 1 . . . . Total Hacks 104 | . 16 23 11 5 24 3 . . 22 Successful 64 | . 9 12 5 1 14 1 . . 22 Failed 40 | . 7 11 6 4 10 2 . . . Catastrophic 2 | . . 1 . . 1 . . . . Database Lockouts . | . . . . . . . . . . Manual 38 | . 9 4 8 4 10 2 . . 1 Terminals 73 | . 16 23 11 4 16 3 . . . Fabricators 6 | . . . . 1 5 . . . . Repair Stations 2 | . . . . . 2 . . . . Recycling Units . | . . . . . . . . . . Scanalyzers . | . . . . . . . . . . Garrison Access 1 | . . . . . 1 . . . . Terminal Hacks 42 | . 5 8 3 . 4 . . . 22 Record 15 | . . . . . . . . . 15 Prototype ID Bank 10 | . 2 1 1 . . . . . 6 Open Door 2 | . . . . . 1 . . . 1 Level Access Points 1 | . . . . . 1 . . . . Branch Access Points 2 | . 1 1 . . . . . . . Emergency Access Points 1 | . . 1 . . . . . . . Terminal Index 1 | . 1 . . . . . . . . Alert Level 2 | . . 1 . . 1 . . . . Locate Traps 2 | . . 2 . . . . . . . Registered Prototypes 1 | . . . . . 1 . . . . Zone Layout 5 | . 1 2 2 . . . . . . Fabricator Hacks 5 | . . . . 1 4 . . . . Network Status 4 | . . . . 1 3 . . . . Build 1 | . . . . . 1 . . . . Repair Station Hacks 1 | . . . . . 1 . . . . Refit 1 | . . . . . 1 . . . . Recycling Unit Hacks . | . . . . . . . . . . Scanalyzer . | . . . . . . . . . . Garrison Access Hacks 1 | . . . . . 1 . . . . Seal Access 1 | . . . . . 1 . . . . Unauthorized Hacks 15 | . 4 4 2 . 4 1 . . . Terminals 15 | . 4 4 2 . 4 1 . . . Botnet 15 | . 4 4 2 . 4 1 . . . Fabricators . | . . . . . . . . . . Repair Stations . | . . . . . . . . . . Recycling Units . | . . . . . . . . . . Scanalyzers . | . . . . . . . . . . Garrison Access . | . . . . . . . . . . Data Cores Recovered . | . . . . . . . . . . Used . | . . . . . . . . . . Hacking Detections 18 | . 3 3 2 2 7 1 . . . Full Trace Events 8 | . . 1 1 1 4 1 . . . Feedback Events 3 | . . . . . 3 . . . . Corruption 2 | . . . . . 2 . . . . Hackware Fried 1 | . . . . . 1 . . . . Feedback Blocked . | . . . . . . . . . . Robot Schematics Acquired . | . . . . . . . . . . Robots Built 1 | . . . . . 1 . . . . Authchips . | . . . . . . . . . . Time 152 | . . . . . 152 . . . . Total Robot Build Rating 5 | . . . . . 5 . . . . Part Schematics Acquired . | . . . . . . . . . . Parts Built . | . . . . . . . . . . Authchips . | . . . . . . . . . . Time . | . . . . . . . . . . Total Part Build Rating . | . . . . . . . . . . Parts Repaired . | . . . . . . . . . . Time . | . . . . . . . . . . Parts Recycled . | . . . . . . . . . . Recycled Matter . | . . . . . . . . . . Retrieved Matter . | . . . . . . . . . . Retrieved Components . | . . . . . . . . . . Parts Scanalyzed . | . . . . . . . . . . Part Schematics Acquired . | . . . . . . . . . . Parts Damaged . | . . . . . . . . . . Bothacking | -11 -10 -9 -8 -7 -6 -5 -5 -5 -5 ------------ Run | Yrd Mat Mat Mat Fac Fac Fac Upp Upp War Used RIF Installer . | . . . . . . . . . . Robots Hacked . | . . . . . . . . . . Non-combat . | . . . . . . . . . . Combat . | . . . . . . . . . . Robot Hacks Applied . | . . . . . . . . . . Relay Couplers Released . | . . . . . . . . . . Fabnet Peak Effective % . | . . . . . . . . . . Robots Rewired . | . . . . . . . . . . Allies Hacked . | . . . . . . . . . . Hacks Repelled . | . . . . . . . . . . Allies | -11 -10 -9 -8 -7 -6 -5 -5 -5 -5 -------- Run | Yrd Mat Mat Mat Fac Fac Fac Upp Upp War Total Allies 1 | . . . . . 1 . . . . Largest Group 1 | . . . . . 1 . . . . Highest-Rated Group 23 | . . . . . 23 . . . . Highest-Rated Ally 23 | . . . . . 23 . . . . Total Orders . | . . . . . . . . . . Ally Attacks . | . . . . . . . . . . Total Damage . | . . . . . . . . . . Kills . | . . . . . . . . . . Allies Corrupted . | . . . . . . . . . . Allies Melted 2 | . . . . . . . . . 2 Intel | -11 -10 -9 -8 -7 -6 -5 -5 -5 -5 ------- Run | Yrd Mat Mat Mat Fac Fac Fac Upp Upp War Robot Analysis Total . | . . . . . . . . . . Derelict Logs Recovered 3 | . . . . . . . . 3 . Drone Launches . | . . . . . . . . . . Drone Recoveries . | . . . . . . . . . . Exploration | -11 -10 -9 -8 -7 -6 -5 -5 -5 -5 ------------- Run | Yrd Mat Mat Mat Fac Fac Fac Upp Upp War Turns Passed 3781 | 80 339 77 69 100 371 123 311 985 1326 Spaces Moved 4021 | 51 186 177 150 213 896 136 520 677 1015 Core 38 | 11 11 . . . . . . . 16 Treads 137 | 40 97 . . . . . . . . Legs 1624 | . 30 . . . . . . 595 999 Wheels . | . . . . . . . . . . Hover 621 | . . . . . . 48 520 53 . Flight 1601 | . 48 177 150 213 896 88 . 29 . Fastest Speed 28 | 50 37 34 34 29 28 28 48 30 50 Average Speed 77 | 136 135 34 34 32 28 70 49 115 119 Slowest Speed 250 | 160 250 107 34 99 99 174 104 168 190 Overloaded Moves 2 | . . . . . 2 . . . . Propulsion Burnouts . | . . . . . . . . . . Robots Hopped 13 | . . 4 4 4 1 . . . . Cave-ins Triggered . | . . . . . . . . . . Exploration Rate (%) 36 | 4 43 26 22 9 26 4 65 78 88 Regions Visited 9 Branch Regions 3 Pre-discovered Areas 2 | . . . . . . . . . 2 Known Exits Taken 5 | . . . . 1 1 1 1 1 . Unknown Exits Taken 4 | 1 1 1 1 . . . . . . Scrap Searched 3 | . . . . . . . 1 2 . Spaces Dug 11 | . . . 2 . 5 3 . . 1 Terrain Destroyed 34 | . 2 . 2 . 5 3 . 1 21 Melee 11 | . . . 2 . 5 3 . . 1 Projectile 21 | . . . . . . . . 1 20 AOE 2 | . 2 . . . . . . . . Terrain Rammed . | . . . . . . . . . . Walls Destroyed . | . . . . . . . . . . Machines Disabled . | . . . . . . . . . . Actions | -11 -10 -9 -8 -7 -6 -5 -5 -5 -5 --------- Run | Yrd Mat Mat Mat Fac Fac Fac Upp Upp War Total 4434 | 59 238 185 154 240 974 151 552 797 1084 Wait 67 | . 5 6 1 1 13 1 5 32 3 Move 3988 | 50 185 169 142 204 893 135 519 676 1015 Hop 11 | . . 3 3 4 1 . . . . Pick Up 52 | 2 8 . 1 4 13 3 6 11 4 Fast Attach 45 | 5 6 4 1 3 8 . . 5 13 Attach 25 | 1 . 1 1 3 3 2 5 6 3 Detach 16 | . 5 . . . 4 . . 1 6 Swap 26 | 1 2 2 . 1 3 4 2 8 3 Drop 51 | . 8 . . 5 12 1 3 10 12 Fire 53 | . 17 . . . . . 5 11 20 Melee 83 | . . . 5 . 24 5 7 37 5 Ram 1 | . 1 . . . . . . . . Kick . | . . . . . . . . . . Crush 1 | . 1 . . . . . . . . Escape Stasis 15 | . . . . 15 . . . . . Rewire . | . . . . . . . . . . Trap . | . . . . . . . . . . Miscellaneous . | . . . . . . . . . . Route ------- -11/Scrapyard -10/Materials (discovered 3 exits: *Mat / *Min x2) -9/Materials (discovered 4 exits: *Mat / *Min x2 / Sto) -8/Materials -7/Factory (discovered 2 exits: *Fac x2) -6/Factory (discovered 5 exits: *Fac x4 / *Ext) -5/Factory -5/Upper Caves -5/Upper Caves -5/Warlord History --------- Turn | Location | Event 2 | -11/Scrapyard | Met Revision 17 3 | -11/Scrapyard | Discovered new exit (range 15) 81 | -11/Scrapyard | Entered Materials 155 | -10/Materials | Discovered new exit (range 14) 244 | -10/Materials | Discovered new exit (range 20) 244 | -10/Materials | Identified exit to Mines 349 | -10/Materials | Build established: Mutant 420 | -10/Materials | Entered another Materials area 420 | -9/Materials | Evolved 2 slots: Propulsion x1, Utility x1 423 | -9/Materials | Discovered new exit (range 14) 436 | -9/Materials | Identified exit to Mines 436 | -9/Materials | Identified exit to Storage 482 | -9/Materials | Discovered new exit (range 13) 497 | -9/Materials | Entered another Materials area 497 | -8/Materials | Evolved 2 slots: Propulsion x1, Utility x1 555 | -8/Materials | Discovered new exit (range 7) 566 | -8/Materials | Entered Factory 566 | -7/Factory | Evolved 2 slots: Utility x2 618 | -7/Factory | Discovered new exit (range 8) 661 | -7/Factory | Discovered new exit (range 7) 665 | -7/Factory | Identified exit to Factory 666 | -7/Factory | Entered another Factory area 666 | -6/Factory | Evolved 2 slots: Utility x2 813 | -6/Factory | Identified exit to Factory 813 | -6/Factory | Imp. Hacking Suite fried by hacking feedback 860 | -6/Factory | Discovered new exit (range 9) 861 | -6/Factory | Identified exit to Extension 897 | -6/Factory | Fabricated A-15 Conveyor? 1037 | -6/Factory | Entered another Factory area 1037 | -5/Factory | Evolved 2 slots: Utility x2 1145 | -5/Factory | Discovered new exit (range 15) 1151 | -5/Factory | Identified exit to Upper Caves 1160 | -5/Factory | Entered Upper Caves 1212 | -5/Upper Caves | Attracted the attention of an 0b10 checkpoint 1466 | -5/Upper Caves | Discovered new exit (range 8) 1470 | -5/Upper Caves | Identified exit to Upper Caves 1471 | -5/Upper Caves | Entered another Upper Caves area 1528 | -5/Upper Caves | Lost 3 parts (1p1n1w) 1583 | -5/Upper Caves | Lost 3 parts (2n1u) 1697 | -5/Upper Caves | Lost 6 parts (1p4u1w) 1801 | -5/Upper Caves | Encountered a Warlord checkpoint 1987 | -5/Upper Caves | Build established: Scavenger-Mutant 2070 | -5/Upper Caves | Learned Factory non-interactive machine intel 2235 | -5/Upper Caves | Identified exit to Warlord 2250 | -5/Upper Caves | Learned Factory emergency access door positions 2363 | -5/Upper Caves | Build established: Mutant 2456 | -5/Upper Caves | Entered Warlord 2527 | -5/Warlord | System corruption cleaned by Quarantine Array 2601 | -5/Warlord | Received a Watcher feed algorithm from an ecstatic Tinkerer 2994 | -5/Warlord | Met Warlord 3000 | -5/Warlord | Warlord's base attacked by MAIN.C 3350 | -5/Warlord | Warlord forces counterattacked 3350 | -5/Warlord | Found Prototype Energy Cannon 3350 | -5/Warlord | Identified Vortex Driver 3462 | -5/Warlord | Spotted Executioner 3463 | -5/Warlord | Spotted Striker 3478 | -5/Warlord | Destroyed Striker 3489 | -5/Warlord | Destroyed Executioner 3505 | -5/Warlord | Found Prototype Processor 3505 | -5/Warlord | Identified Exp. Targeting Computer 3515 | -5/Warlord | Found Prototype Device 3515 | -5/Warlord | Identified Adv. Kinecellerator 3518 | -5/Warlord | Lost 6 allies 3530 | -5/Warlord | Spotted Striker 3547 | -5/Warlord | Spotted Executioner 3558 | -5/Warlord | Core integrity fell below 50% 3675 | -5/Warlord | Warlord base infiltrated, sounded retreat 3676 | -5/Warlord | Lost 12 allies 3690 | -5/Warlord | Spotted Striker 3766 | -5/Warlord | Learned location of Armory (-4) 3766 | -5/Warlord | Learned Research trap positions 3766 | -5/Warlord | Learned 4 Armory zone layouts 3766 | -5/Warlord | Learned 4 Testing zone layouts 3766 | -5/Warlord | Learned 4 Command zone layouts 3767 | -5/Warlord | Learned Factory fabricator intel 3767 | -5/Warlord | Learned Armory terminal intel 3767 | -5/Warlord | Learned Research terminal intel 3770 | -5/Warlord | Core integrity fell below 20% 3782 | -5/Warlord | Destroyed by G-50 Soldier with Heavy Laser Last Messages --------------- Armory zone layouts. Data stored: Armory zone layouts (x4). >>Intel "Recon Data L/09319" Testing zone layouts. Data stored: Testing zone layouts (x4). >>Intel "Recon Data L/81234" Command zone layouts. Data stored: Command zone layouts (x4). 03767_ Connecting with Intel Room Terminal... >>Intel "Recon Data M/12098" Factory fabricator locations. Data stored: Factory fabricator intel. >>Intel "Recon Data M/21233" Armory terminal locations. Data stored: Armory terminal intel. >>Intel "Recon Data M/70984" Research terminal locations. Data stored: Research terminal intel. 03777_ Machine disabled. [Achievement: I Think I Know What's Going On] Map ----- +----------------------------------------------------+ | ??????????????????????# #### "### """ | | ??????????????????????########??# ##?# %* # | | ????????######??????????????????# #??# % " | | ???????##""""##?????????????????# #??# " | | ???????#"" "#?????????????????# #?## # | | ???????#" "#??#######????????# ! #?# # | | ???????#"" #X"#??# X#????????# ! ### # | | ???????#" #""#??# "????????# ! ! / | | ???????## ####??# "????????# ##" | | ?????#####+####??# "????????# ##" % | | ?????# ^ #??# #????????# # "#" % | | ?????# ^^ #??# #########?########### # | | ?????#^ ^""" #??# """"""""#????# | | ?????#^^^""" #??# "#????# ]& | | ###### """ #### "#????# &&& # | | #" + + "#????# # | | #X # + ""#????# ] | | #" # + "#????# ! # | | #""" # ######### "#????# # # | | ###### #???????# "#????# # # | | ?????# #???????#""""""""""""#????#! #? # | | ###### #???????##############????#/########?? # | | #?????????????????????????# #?????????? # | | #######+####????????????###????????# #?????????? # | | ??????# #??????????###;###??????# #???????????# | | ??????# #??????????#""@""######## ######## # | | ??????#& #??????????#"" gKggg | | ??????#& #??????????#""XXX##gg | | ??????######??????????#"""""###################### | | ??????????????????????#######????????????????????? | | ?????????????????????????????????????????????????? | | ?????????????????????????????????????????????????? | | ?????????????????????????????????????????????????? | | ?????????????????????????????????????????????????? | | | | | | | | | | | | | | | | | | | | | | | | | | | | | | | | | +----------------------------------------------------+ Best States ------------- Heat Dissipation 85 Energy Generation 21 Energy Capacity 315 Matter Stores 300 Matter Capacity 300 Sight Range 22 Robot Scan Range 16 Terrain Scan Density 135 Additional Mass Support 12 Armor Coverage 225 Utility Shielding 66 Weapon Shielding 66 Phase Shifting 5 Evasion (%) 69 Targeting Accuracy 28 Target Analysis 9 Core Analysis 6 Recoil Reduction 2 Kinecelleration 50 Salvage Targeting 1 Offensive Hacking 24 Item Schematics ----------------- None Robot Schematics ------------------ None Fabricated ------------ A-15 Conveyor | x1 | -6/Factory | Preloaded Alien Tech Used ----------------- None Achievements -------------- A Powerful Ally? I Think I Know What's Going On Challenges ------------ None Game ------ Seed NeutrinoFusionCleaver Manual? 0 Play Time 00:43:00 Cumulative 75.9 hours Start 2024.07.21 @ 15:36:09 End 2024.07.21 @ 16:14:08 Sessions 1 Manual Loads 0 Difficulty Rogue Special Mode None Game No. 81 Rogue 81 Adventurer 0 Explorer 0 Win Type - Total 0 Types 0/0/0/0/0/0/0/0/0 Lore% 51 Gallery% 57 Achievement% 42 Wizard Run 0 Options --------- Layout 0 ASCII 0 Keyboard 1 Movement Numpad Keybinds 0 Fullscreen 2 Font 18/SmallcapsGlow Map View 76x50 Zoom Use 0% Tactical HUD 1 Map Filters NONE Filters NONE Steam 1 RUN: d44677ce-c38d-4666-a345-70c385e28ffb